[Event "Dutch Open 2022"]
[Site "Dieren"]
[Date "2022.08.03"]
[Round "8.13"]
[White "Albers, Sasa"]
[Black "Vos, Tjark"]
[Result "0-1"]
[ECO "B06"]
[WhiteElo "2203"]
[BlackElo "2224"]
[Annotator "TA"]
[PlyCount "68"]
[EventDate "2022.07.14"]
[EventType "swiss"]
[EventCountry "NED"]
[SourceTitle "playchess.com"]
[Source "ChessBase"]
[SourceQuality "1"]
[TimeControl "40/5400+30:1800+30"]

{[%evp 9,67,37,54,49,42,42,49,40,45,14,4,0,0,0,21,15,15,4,25,-21,0,0,0,-47,-39,-80,-62,-77,-84,-90,-89,-104,-107,-98,-120,-112,-114,-121,-125,-133,-126,-170,-131,-153,-151,-791,-525,-518,-264,-258,-267,-1131,-1104,-1717,-1589,-29997,-1947,-29989,-29990,-29999]} 1. e4 {[%emt 0:06:18]} g6 {[%emt 0:00:03]} 2. d4 {[%emt 0:00:45]} Bg7 {[%emt 0:00:05]} 3. Nf3 {[%emt 0:00:19]} d6 {[%emt 0:00:20]} 4. Be3 {[%emt 0:01:03]} Nd7 {[%emt 0:01:16]} 5. Nc3 {[%emt 0:08:57]} a6 {[%emt 0:00:50]} 6. Bc4 {[%emt 0:03:04] B06: Modern Defence.} e6 {[%emt 0:02:06]} 7. a4 {[%emt 0:01:54] Prevents b5.} Ngf6 {[%emt 0:05:34]} 8. Qd2 {[%emt 0:01:33] White is slightly better.} O-O {[%emt 0:02:51][%cal Of6e4] [#]} 9. Bh6 $146 {[%emt 0:03:33]} ({Predecessor:} 9. Rd1 Nb6 10. Bb3 Bd7 11. h3 d5 12. e5 Ne4 13. Nxe4 dxe4 14. Ng5 h6 15. Nxe4 {1-0 (36) Spatz,H-Hoffmann,C Bad Neustadt 1990}) 9... d5 {[%emt 0:04:19]} 10. Bxg7 {[%emt 0:06:08]} Kxg7 {[%emt 0:00:05]} 11. exd5 {[%emt 0:07:09]} Nb6 {[%emt 0:00:05]} 12. Bb3 {[%emt 0:02:37]} exd5 {[%emt 0:00:54]} 13. O-O {[%emt 0:01:11]} Be6 {[%emt 0:04:39]} 14. Rad1 {[%emt 0:08:08]} (14. Rfe1 {is superior.}) 14... Qd6 {[%emt 0:04:31]} 15. a5 {[%emt 0:04:42]} Nbd7 {[%emt 0:00:24]} 16. Rfe1 {[%emt 0:00:42]} (16. h3 $11 {is more appropriate.}) 16... Bg4 $15 {[%emt 0:14:17]} 17. Re3 {[%emt 0:03:32]} Rfe8 {[%emt 0:03:03]} 18. Rde1 {[%emt 0:00:29]} Bxf3 {[%emt 0:04:11]} 19. gxf3 {[%emt 0:09:12][%cal Oc3d5]} c6 {[%emt 0:06:32]} 20. Rxe8 {[%emt 0:03:12]} Rxe8 {[%emt 0:03:19]} 21. Rxe8 {[%emt 0:00:08]} Nxe8 {[%emt 0:00:04][%cal Bf6e8,Be8d6,Bd6f5,Bf5h4][%mdl 32]} 22. Ne2 {[%emt 0:00:11]} Qf6 {[%emt 0:01:49]} 23. Kg2 {[%emt 0:11:10]} Nd6 {[%emt 0:40:43] Prevents c4.} 24. Qf4 {[%emt 0:00:19]} Nf5 {[%emt 0:00:00]} 25. c3 {[%emt 0:00:45]} g5 {[%emt 0:00:00]} 26. Qg4 {[%emt 0:00:11]} Nh4+ $1 {[%emt 0:00:00] Pair of Knights!} 27. Kg3 $2 {[%emt 0:02:11] [#] Loses the game.} ({Reject} 27. Kf1 Qg6 $1 28. Nc1 Nf6) (27. Kh1 $17) 27... h6 $1 {[%emt 0:00:00]} 28. f4 {[%emt 0:01:13]} Qe7 {[%emt 0:00:00]} 29. fxg5 {[%emt 0:00:21]} hxg5 {[%emt 0:00:00]} 30. Bc2 $2 {[%emt 0:00:27] [#]} (30. Nf4 f5 31. Ne6+ Qxe6 32. Qxg5+ Ng6 33. Bc2) 30... Kh6 $1 $19 {[%emt 0:00:00] Hoping for ...Nf6.} 31. Bd3 {[%emt 0:02:28]} f5 {[%emt 0:00:00]} 32. Qh3 {[%emt 0:02:06]} Nf6 {[%emt 0:00:00]} (32... f4+ $142 33. Nxf4 gxf4+ 34. Kxf4 Qg5#) 33. f3 {[%emt 0:01:01]} Qe3 {[%emt 0:00:00][%csl Gh4,LRd3,LRf3][%cal Re3f3]} 34. b3 {[%emt 0:00:13]} Qxf3# {[%emt 0:00:00] Weighted Error Value: White=1.03/Black=0.38} 0-1

[Event "Dutch Open 2022"]
[Site "Dieren"]
[Date "2022.08.03"]
[Round "8.14"]
[White "Vogel, Jaap"]
[Black "Shakhverdian, William"]
[Result "1-0"]
[ECO "D02"]
[WhiteElo "2147"]
[BlackElo "2040"]
[Annotator "NA RC"]
[PlyCount "45"]
[EventDate "2022.07.14"]
[EventType "swiss"]
[EventCountry "NED"]
[SourceTitle "playchess.com"]
[Source "ChessBase"]
[SourceQuality "1"]
[TimeControl "40/5400+30:1800+30"]

1. Nf3 {[%emt 0:00:02]} d5 {[%emt 0:00:14]} 2. g3 {[%emt 0:00:12]} c5 {[%emt 0:00:35]} 3. Bg2 {[%emt 0:00:13]} Nc6 {[%emt 0:00:06]} 4. d4 {[%emt 0:00:11]} cxd4 {[%emt 0:03:30]} 5. Nxd4 {[%emt 0:00:05]} Nf6 {[%emt 0:02:47]} 6. O-O {[%emt 0:04:12]} Bd7 {[%emt 0:04:02]} 7. c4 {[%emt 0:02:50]} e5 {[%emt 0:01:19]} 8. Nxc6 {[%emt 0:03:51]} Bxc6 {[%emt 0:00:24]} 9. cxd5 {[%emt 0:07:47]} Nxd5 {[%emt 0:00:22]} 10. Qb3 {[%emt 0:00:38]} Nb6 {[%emt 0:52:12]} 11. Bxc6+ {[%emt 0:05:03]} bxc6 {[%emt 0:00:09]} 12. Nc3 {[%emt 0:09:38]} Be7 {[%emt 0:00:24]} 13. Be3 {[%emt 0:17:50]} O-O {[%emt 0:00:23]} 14. Rfd1 {[%emt 0:00:45]} Qc7 {[%emt 0:00:15]} 15. Rac1 {[%emt 0:00:48]} Rfd8 {[%emt 0:00:49]} 16. Rxd8+ {[%emt 0:07:37]} Bxd8 {[%emt 0:02:26]} 17. Bc5 {[%emt 0:06:51]} Rb8 {[%emt 0:02:21]} 18. Ne4 {[%emt 0:04:00]} Nc8 {[%emt 0:00:46]} 19. Qc2 {[%emt 0:06:42]} Be7 {[%emt 0:04:20]} 20. b3 {[%emt 0:01:32]} f5 {[%emt 0:02:54]} 21. Qc4+ {[%emt 0:02:25]} Kh8 {[%emt 0:01:16]} 22. Qf7 {[%emt 0:06:14]} g6 {[%emt 0:01:35]} 23. Nf6 {[%emt 0:02:28]} 1-0

[Event "Dutch Open 2022"]
[Site "Dieren"]
[Date "2022.08.03"]
[Round "8.15"]
[White "Saketh, Pedagandham"]
[Black "Roorda, Thijs"]
[Result "1-0"]
[ECO "A96"]
[WhiteElo "1928"]
[BlackElo "2113"]
[Annotator "NA RC"]
[PlyCount "87"]
[EventDate "2022.07.14"]
[EventType "swiss"]
[EventCountry "NED"]
[SourceTitle "playchess.com"]
[Source "ChessBase"]
[SourceQuality "1"]
[TimeControl "40/5400+30:1800+30"]

1. Nf3 {[%emt 0:14:33]} e6 {[%emt 1:31:00]} 2. g3 {[%emt 0:01:23]} f5 {[%emt 0:00:00]} 3. Bg2 {[%emt 0:00:06]} Nf6 {[%emt 0:00:00]} 4. c4 {[%emt 0:00:04]} Be7 {[%emt 0:00:00]} 5. O-O {[%emt 0:00:06]} O-O {[%emt 0:00:00]} 6. Nc3 {[%emt 0:00:03]} d6 {[%emt 0:00:00]} 7. d4 {[%emt 0:00:26]} Ne4 {[%emt 0:00:00]} 8. Nxe4 {[%emt 0:00:06]} fxe4 {[%emt 0:00:00]} 9. Nd2 {[%emt 0:00:05]} d5 {[%emt 0:00:00]} 10. f3 {[%emt 0:00:03]} Nc6 {[%emt 0:00:00]} 11. e3 {[%emt 0:00:06]} exf3 {[%emt 0:00:00]} 12. Nxf3 {[%emt 0:00:10]} Bf6 {[%emt 0:00:00]} 13. b3 {[%emt 0:06:01]} Qe7 {[%emt 0:00:00]} 14. Bb2 {[%emt 0:05:58]} dxc4 {[%emt 0:00:00]} 15. bxc4 {[%emt 0:00:33]} e5 {[%emt 0:00:00]} 16. dxe5 {[%emt 0:20:38]} Rd8 {[%emt 0:00:00]} 17. exf6 {[%emt 0:01:25]} Qxe3+ {[%emt 0:00:00]} 18. Kh1 {[%emt 0:00:30]} Rxd1 {[%emt 0:00:00]} 19. f7+ {[%emt 0:02:58]} Kxf7 {[%emt 0:00:00]} 20. Raxd1 {[%emt 0:01:48]} Kg8 {[%emt 0:00:00]} 21. Rde1 {[%emt 0:13:38]} Qc5 {[%emt 0:00:00]} 22. Re8+ {[%emt 0:04:49]} Kf7 {[%emt 0:00:00]} 23. Rh8 {[%emt 0:01:18]} Rb8 {[%emt 0:00:00]} 24. Ng5+ {[%emt 0:09:38]} Kg6 {[%emt 0:00:00]} 25. Be4+ {[%emt 0:00:48]} Bf5 {[%emt 0:00:00]} 26. Rxf5 {[%emt 0:02:40]} Qxf5 {[%emt 0:00:00]} 27. Rxb8 {[%emt 0:03:24]} Nxb8 {[%emt 0:00:00]} 28. Bxf5+ {[%emt 0:02:18]} Kxf5 {[%emt 0:00:00]} 29. h4 {[%emt 0:01:02]} h6 {[%emt 0:00:00]} 30. Nf3 {[%emt 0:00:05]} g5 {[%emt 0:00:00]} 31. hxg5 {[%emt 0:00:48]} hxg5 {[%emt 0:00:00]} 32. Kg2 {[%emt 0:00:27]} c5 {[%emt 0:00:00]} 33. Ne5 {[%emt 0:00:17]} Na6 {[%emt 0:00:00]} 34. Kf3 {[%emt 0:00:31]} Nc7 {[%emt 0:00:00]} 35. g4+ {[%emt 0:00:17]} Ke6 {[%emt 0:00:00]} 36. Ke4 {[%emt 0:00:22]} Ne8 {[%emt 0:00:00]} 37. Nf3 {[%emt 0:01:32]} Nd6+ {[%emt 0:00:00]} 38. Kd3 {[%emt 0:00:09]} Nf7 {[%emt 0:00:00]} 39. Bg7 {[%emt 0:00:34]} a6 {[%emt 0:00:00]} 40. a4 {[%emt 0:00:32]} a5 {[%emt 0:00:00]} 41. Bc3 {[%emt 0:32:02]} b6 {[%emt 0:15:58]} 42. Bg7 {[%emt 0:00:35]} Ke7 {[%emt 0:00:15]} 43. Ke4 {[%emt 0:00:51]} Ke6 {[%emt 0:00:31]} 44. Be5 {[%emt 0:00:26]} 1-0

[Event "Dutch Open 2022"]
[Site "Dieren"]
[Date "2022.08.03"]
[Round "8.16"]
[White "Kohler, Aran"]
[Black "De Boer, Bas"]
[Result "0-1"]
[ECO "D00"]
[WhiteElo "2121"]
[BlackElo "2136"]
[Annotator "NA RC"]
[PlyCount "108"]
[EventDate "2022.07.14"]
[EventType "swiss"]
[EventCountry "NED"]
[SourceTitle "playchess.com"]
[Source "ChessBase"]
[SourceQuality "1"]
[TimeControl "40/5400+30:1800+30"]

1. d4 {[%emt 0:00:15]} d5 {[%emt 0:00:07]} 2. Bf4 {[%emt 0:00:05]} c5 {[%emt 0:00:46]} 3. e3 {[%emt 0:01:27]} cxd4 {[%emt 0:00:15]} 4. Bxb8 {[%emt 0:00:30]} Qa5+ {[%emt 0:02:24]} 5. c3 {[%emt 0:02:21]} Rxb8 {[%emt 0:00:35]} 6. exd4 {[%emt 0:00:24]} Nf6 {[%emt 0:01:21]} 7. Bd3 {[%emt 0:01:02]} g6 {[%emt 0:07:33]} 8. Nd2 {[%emt 0:00:09]} Bg7 {[%emt 0:00:16]} 9. Ngf3 {[%emt 0:00:35]} O-O {[%emt 0:00:53]} 10. Ne5 {[%emt 0:00:28]} Qc7 {[%emt 0:02:03]} 11. g4 {[%emt 0:06:36]} b5 {[%emt 0:06:34]} 12. h4 {[%emt 0:06:14]} Nd7 {[%emt 0:00:58]} 13. Nxd7 {[%emt 0:05:19]} Bxd7 {[%emt 0:00:58]} 14. Qf3 {[%emt 0:00:38]} e5 {[%emt 0:02:48]} 15. dxe5 {[%emt 0:00:20]} Qxe5+ {[%emt 0:00:38]} 16. Kf1 {[%emt 0:01:20]} b4 {[%emt 0:00:36]} 17. Re1 {[%emt 0:00:17]} Qf6 {[%emt 0:00:26]} 18. Re3 {[%emt 0:23:47]} Qxf3 {[%emt 0:01:35]} 19. Nxf3 {[%emt 0:15:27]} bxc3 {[%emt 0:00:14]} 20. bxc3 {[%emt 0:01:57]} Bxg4 {[%emt 0:00:05]} 21. Ne5 {[%emt 0:01:05]} Bxe5 {[%emt 0:01:30]} 22. Rxe5 {[%emt 0:00:08]} Rb2 {[%emt 0:00:09]} 23. Kg2 {[%emt 0:00:54]} Rd2 {[%emt 0:02:06]} 24. Rxd5 {[%emt 0:00:41]} Bf5 {[%emt 0:00:09]} 25. Rxf5 {[%emt 0:01:30]} gxf5 {[%emt 0:00:05]} 26. Bxf5 {[%emt 0:00:17]} Rxa2 {[%emt 0:00:06]} 27. Rc1 {[%emt 0:01:55]} Ra5 {[%emt 0:00:33]} 28. Be4 {[%emt 0:00:22]} Rc5 {[%emt 0:00:32]} 29. c4 {[%emt 0:00:49]} Rd8 {[%emt 0:00:32]} 30. f3 {[%emt 0:00:32]} f5 {[%emt 0:00:38]} 31. Bb7 {[%emt 0:00:05]} Kg7 {[%emt 0:01:06]} 32. Kf2 {[%emt 0:01:30]} Rd4 {[%emt 0:01:30]} 33. Bd5 {[%emt 0:00:57]} Rxh4 {[%emt 0:00:11]} 34. Ke3 {[%emt 0:04:06]} a5 {[%emt 0:01:47]} 35. f4 {[%emt 0:00:11]} Rc7 {[%emt 0:04:14]} 36. Rg1+ {[%emt 0:08:53]} Rg4 {[%emt 0:02:06]} 37. Ra1 {[%emt 0:00:12]} Ra7 {[%emt 0:00:17]} 38. Ra4 {[%emt 0:00:51]} h5 {[%emt 0:01:07]} 39. c5 {[%emt 0:00:04]} Kf6 {[%emt 0:01:02]} 40. c6 {[%emt 0:00:58]} Rgg7 {[%emt 0:00:17]} 41. Kd4 {[%emt 0:30:19]} h4 {[%emt 0:30:49]} 42. Kc5 {[%emt 0:00:23]} h3 {[%emt 0:07:18]} 43. Ra2 {[%emt 0:04:22]} a4 {[%emt 0:01:00]} 44. Re2 {[%emt 0:01:31]} Rge7 {[%emt 0:04:37]} 45. Rh2 {[%emt 0:00:20]} a3 {[%emt 0:05:39]} 46. Kd6 {[%emt 0:03:52]} Rh7 {[%emt 0:05:33]} 47. Re2 {[%emt 0:05:41]} Kg6 {[%emt 0:03:07]} 48. Rh2 {[%emt 0:00:00]} Rh8 {[%emt 0:00:00]} 49. c7 {[%emt 0:00:00]} Rc8 {[%emt 0:00:00]} 50. Rxh3 {[%emt 0:00:00]} Rcxc7 {[%emt 0:00:00]} 51. Ke5 {[%emt 0:00:00]} Re7+ {[%emt 0:00:00]} 52. Kd6 {[%emt 0:00:00]} Red7+ {[%emt 0:00:00]} 53. Ke6 {[%emt 0:00:00]} Rxd5 {[%emt 0:00:00]} 54. Rg3+ {[%emt 0:00:00]} Kh6 {[%emt 0:00:00]} 0-1